[Event "Titled Tuesday Blitz February 22 Late 2022"]
[White "Erdogdu, Mert"]
[Black "Van Foreest, Jorden"]
[WhiteFideId "6301495"]
[BlackFideId "1039784"]
[WhiteElo "2485"]
[BlackElo "2609"]
[Result "0-1"]
[Round "05"]
[TimeControl "180+1"]
[Date "2022.02.22"]
[WhiteClock "0:00:04"]
[BlackClock "0:00:46"]

1. e4 {[%clk 0:03:00]}  c6 {[%clk 0:02:59]} 2. d4 {[%clk 0:03:00]}  d5 {[%clk 0:03:00]} 3. exd5 {[%clk 0:03:01]}  cxd5 {[%clk 0:02:58]} 4. c4 {[%clk 0:03:01]}  Nf6 {[%clk 0:02:58]} 5. Nc3 {[%clk 0:03:02]}  g6 {[%clk 0:02:57]} 6. Qb3 {[%clk 0:03:00]}  Bg7 {[%clk 0:02:57]} 7. cxd5 {[%clk 0:02:59]}  O-O {[%clk 0:02:58]} 8. Nge2 {[%clk 0:02:57]}  Nbd7 {[%clk 0:02:53]} 9. Nf4 {[%clk 0:02:56]}  Nb6 {[%clk 0:02:53]} 10. g3 {[%clk 0:02:54]}  g5 {[%clk 0:02:29]} 11. Nfe2 {[%clk 0:02:52]}  Nfxd5 {[%clk 0:02:22]} 12. Bxg5 {[%clk 0:02:30]}  Be6 {[%clk 0:02:22]} 13. Qd1 {[%clk 0:02:28]}  Nxc3 {[%clk 0:02:22]} 14. Nxc3 {[%clk 0:02:28]}  Qxd4 {[%clk 0:02:21]} 15. Qxd4 {[%clk 0:02:06]}  Bxd4 {[%clk 0:02:22]} 16. Bg2 {[%clk 0:02:05]}  Bxc3+ {[%clk 0:02:03]} 17. bxc3 {[%clk 0:02:04]}  Bd5 {[%clk 0:02:04]} 18. f3 {[%clk 0:01:55]}  Rac8 {[%clk 0:02:00]} 19. O-O {[%clk 0:01:45]}  f6 {[%clk 0:02:00]} 20. Bh6 {[%clk 0:01:42]}  Rfd8 {[%clk 0:02:01]} 21. Rfc1 {[%clk 0:01:39]}  Na4 {[%clk 0:01:57]} 22. Bd2 {[%clk 0:00:40]}  Bxf3 {[%clk 0:01:50]} 23. Bxf3 {[%clk 0:00:40]}  Rxd2 {[%clk 0:01:50]} 24. Bxb7 {[%clk 0:00:40]}  Rc7 {[%clk 0:01:50]} 25. Bf3 {[%clk 0:00:34]}  Nxc3 {[%clk 0:01:50]} 26. a4 {[%clk 0:00:30]}  Kf7 {[%clk 0:01:29]} 27. a5 {[%clk 0:00:28]}  e5 {[%clk 0:01:07]} 28. Kh1 {[%clk 0:00:25]}  Rc5 {[%clk 0:00:59]} 29. Ra3 {[%clk 0:00:20]}  Ne4 {[%clk 0:00:58]} 30. Rxc5 {[%clk 0:00:18]}  Nxc5 {[%clk 0:00:59]} 31. Rc3 {[%clk 0:00:18]}  Ne6 {[%clk 0:00:53]} 32. h4 {[%clk 0:00:16]}  f5 {[%clk 0:00:50]} 33. Rb3 {[%clk 0:00:12]}  e4 {[%clk 0:00:49]} 34. Bh5+ {[%clk 0:00:09]}  Kf6 {[%clk 0:00:50]} 35. Kg1 {[%clk 0:00:09]}  Ra2 {[%clk 0:00:46]} 36. Rb5 {[%clk 0:00:09]}  Nd4 {[%clk 0:00:45]} 37. Rc5 {[%clk 0:00:08]}  e3 {[%clk 0:00:44]} 38. Rd5 {[%clk 0:00:04]}  Ra1+ {[%clk 0:00:44]} 39. Kg2 {[%clk 0:00:04]}  e2 {[%clk 0:00:44]} 40. Bxe2 {[%clk 0:00:04]}  Nxe2 {[%clk 0:00:45]} 41. Rd6+ {[%clk 0:00:04]}  Ke5 {[%clk 0:00:44]} 42. Ra6 {[%clk 0:00:04]}  Ra3 {[%clk 0:00:44]} 43. Rxa7 {[%clk 0:00:03]}  Nxg3 {[%clk 0:00:44]} 44. Kf2 {[%clk 0:00:04]}  Ne4+ {[%clk 0:00:44]} 45. Ke2 {[%clk 0:00:04]}  f4 {[%clk 0:00:44]} 46. Re7+ {[%clk 0:00:03]}  Kf5 {[%clk 0:00:44]} 47. Rxh7 {[%clk 0:00:04]}  f3+ {[%clk 0:00:45]} 48. Kd1 {[%clk 0:00:04]}  Ra1+ {[%clk 0:00:45]} 49. Kc2 {[%clk 0:00:04]}  f2 {[%clk 0:00:45]} 50. Rf7+ {[%clk 0:00:04]}  Nf6 {[%clk 0:00:46]} 0-1


[Site "https://www.chess.com"]

[Event "Titled Tuesday Blitz February 22 Late 2022"]
[White "Fedoseev, Vladimir"]
[Black "Kollars, Dmitrij"]
[WhiteFideId "24130737"]
[BlackFideId "12909572"]
[WhiteElo "2726"]
[BlackElo "2584"]
[Result "0-1"]
[Round "05"]
[TimeControl "180+1"]
[Date "2022.02.22"]
[WhiteClock "0:00:01"]
[BlackClock "0:00:17"]

1. e4 {[%clk 0:02:53]}  e5 {[%clk 0:02:57]} 2. Nf3 {[%clk 0:02:54]}  Nc6 {[%clk 0:02:57]} 3. Bb5 {[%clk 0:02:53]}  a6 {[%clk 0:02:57]} 4. Ba4 {[%clk 0:02:53]}  Nf6 {[%clk 0:02:57]} 5. O-O {[%clk 0:02:52]}  Bc5 {[%clk 0:02:57]} 6. c3 {[%clk 0:02:51]}  b5 {[%clk 0:02:57]} 7. Bc2 {[%clk 0:02:48]}  d5 {[%clk 0:02:57]} 8. d4 {[%clk 0:02:46]}  dxe4 {[%clk 0:02:55]} 9. Nxe5 {[%clk 0:02:46]}  Nxe5 {[%clk 0:02:55]} 10. dxc5 {[%clk 0:02:46]}  Nd3 {[%clk 0:02:47]} 11. Bg5 {[%clk 0:01:46]}  Bf5 {[%clk 0:02:07]} 12. Nd2 {[%clk 0:01:27]}  Nxc5 {[%clk 0:01:59]} 13. b4 {[%clk 0:01:23]}  Ne6 {[%clk 0:01:56]} 14. Bxf6 {[%clk 0:01:14]}  Qxf6 {[%clk 0:01:57]} 15. Nxe4 {[%clk 0:01:02]}  Qg6 {[%clk 0:01:25]} 16. Qf3 {[%clk 0:00:25]}  O-O {[%clk 0:01:23]} 17. Nf6+ {[%clk 0:00:15]}  Qxf6 {[%clk 0:01:23]} 18. Bxf5 {[%clk 0:00:15]}  Rad8 {[%clk 0:00:48]} 19. Rfd1 {[%clk 0:00:14]}  Ng5 {[%clk 0:00:45]} 20. Qg4 {[%clk 0:00:14]}  h5 {[%clk 0:00:41]} 21. Qxh5 {[%clk 0:00:06]}  Qxf5 {[%clk 0:00:40]} 22. Re1 {[%clk 0:00:05]}  Rd2 {[%clk 0:00:34]} 23. Qh4 {[%clk 0:00:05]}  Ne6 {[%clk 0:00:27]} 24. a4 {[%clk 0:00:05]}  Rfd8 {[%clk 0:00:24]} 25. axb5 {[%clk 0:00:04]}  axb5 {[%clk 0:00:25]} 26. h3 {[%clk 0:00:04]}  Qf4 {[%clk 0:00:18]} 27. Qxf4 {[%clk 0:00:03]}  Nxf4 {[%clk 0:00:19]} 28. Re5 {[%clk 0:00:03]}  Rd1+ {[%clk 0:00:16]} 29. Rxd1 {[%clk 0:00:03]}  Rxd1+ {[%clk 0:00:17]} 30. Kh2 {[%clk 0:00:04]}  Nd5 {[%clk 0:00:18]} 31. f3 {[%clk 0:00:01]}  c6 {[%clk 0:00:17]} 0-1


[Site "https://www.chess.com"]

[Event "Titled Tuesday Blitz February 22 Late 2022"]
[White "Gatterer, Florian"]
[Black "Sanchez Alvares, Kelvin Antonio"]
[WhiteFideId "811688"]
[BlackFideId "3906680"]
[WhiteElo "2218"]
[BlackElo "2193"]
[Result "0-1"]
[Round "05"]
[TimeControl "180+1"]
[Date "2022.02.23"]
[WhiteClock "0:00:15"]
[BlackClock "0:00:16"]

1. f4 {[%clk 0:03:00]}  g6 {[%clk 0:02:59]} 2. Nf3 {[%clk 0:02:59]}  Bg7 {[%clk 0:03:00]} 3. e4 {[%clk 0:02:59]}  c5 {[%clk 0:03:00]} 4. d3 {[%clk 0:02:50]}  Nc6 {[%clk 0:02:59]} 5. Be2 {[%clk 0:02:46]}  e6 {[%clk 0:02:59]} 6. O-O {[%clk 0:02:43]}  Nge7 {[%clk 0:02:55]} 7. c3 {[%clk 0:02:43]}  O-O {[%clk 0:02:53]} 8. Be3 {[%clk 0:02:43]}  b6 {[%clk 0:02:52]} 9. d4 {[%clk 0:02:40]}  cxd4 {[%clk 0:02:50]} 10. cxd4 {[%clk 0:02:40]}  d5 {[%clk 0:02:45]} 11. e5 {[%clk 0:02:37]}  Bd7 {[%clk 0:02:42]} 12. Nc3 {[%clk 0:02:35]}  a6 {[%clk 0:02:39]} 13. Rc1 {[%clk 0:02:32]}  Na5 {[%clk 0:02:38]} 14. b3 {[%clk 0:02:27]}  Qb8 {[%clk 0:01:39]} 15. Qd2 {[%clk 0:02:18]}  Rc8 {[%clk 0:01:30]} 16. g4 {[%clk 0:02:17]}  Qb7 {[%clk 0:01:20]} 17. Nb1 {[%clk 0:02:12]}  Nac6 {[%clk 0:01:17]} 18. Rc2 {[%clk 0:02:04]}  Nd8 {[%clk 0:01:16]} 19. Rfc1 {[%clk 0:02:02]}  Rxc2 {[%clk 0:01:15]} 20. Rxc2 {[%clk 0:02:02]}  Rc8 {[%clk 0:01:16]} 21. Rxc8 {[%clk 0:02:02]}  Qxc8 {[%clk 0:01:16]} 22. Qc3 {[%clk 0:02:02]}  Qxc3 {[%clk 0:01:15]} 23. Nxc3 {[%clk 0:02:02]}  b5 {[%clk 0:01:16]} 24. Nd1 {[%clk 0:01:49]}  Bf8 {[%clk 0:01:07]} 25. Bd2 {[%clk 0:01:48]}  Nec6 {[%clk 0:01:07]} 26. Nf2 {[%clk 0:01:44]}  Nb4 {[%clk 0:01:06]} 27. Nd3 {[%clk 0:01:26]}  Nxa2 {[%clk 0:01:01]} 28. Nc5 {[%clk 0:01:26]}  Bxc5 {[%clk 0:01:01]} 29. dxc5 {[%clk 0:01:26]}  Nc6 {[%clk 0:01:00]} 30. Bd3 {[%clk 0:01:15]}  Nab4 {[%clk 0:00:59]} 31. Bb1 {[%clk 0:01:14]}  a5 {[%clk 0:00:57]} 32. Kf2 {[%clk 0:01:06]}  Na6 {[%clk 0:00:56]} 33. Be3 {[%clk 0:01:01]}  a4 {[%clk 0:00:53]} 34. bxa4 {[%clk 0:01:00]}  bxa4 {[%clk 0:00:53]} 35. Nd4 {[%clk 0:00:57]}  Nxd4 {[%clk 0:00:49]} 36. Bxd4 {[%clk 0:00:56]}  Bb5 {[%clk 0:00:49]} 37. Ke3 {[%clk 0:00:47]}  Nb4 {[%clk 0:00:48]} 38. Bb2 {[%clk 0:00:38]}  Nc6 {[%clk 0:00:48]} 39. Ba2 {[%clk 0:00:31]}  Kf8 {[%clk 0:00:31]} 40. f5 {[%clk 0:00:32]}  Ke7 {[%clk 0:00:28]} 41. h4 {[%clk 0:00:29]}  Bc4 {[%clk 0:00:20]} 42. Bb1 {[%clk 0:00:29]}  d4+ {[%clk 0:00:09]} 43. Kf4 {[%clk 0:00:25]}  d3 {[%clk 0:00:05]} 44. Ke3 {[%clk 0:00:24]}  a3 {[%clk 0:00:04]} 45. Bxa3 {[%clk 0:00:22]}  Nxe5 {[%clk 0:00:03]} 46. c6+ {[%clk 0:00:13]}  Kd8 {[%clk 0:00:03]} 47. Bb4 {[%clk 0:00:13]}  Nxc6 {[%clk 0:00:02]} 48. Bc3 {[%clk 0:00:13]}  exf5 {[%clk 0:00:02]} 49. gxf5 {[%clk 0:00:12]}  gxf5 {[%clk 0:00:02]} 50. Bxd3 {[%clk 0:00:12]}  Bxd3 {[%clk 0:00:02]} 51. Kxd3 {[%clk 0:00:13]}  Kd7 {[%clk 0:00:03]} 52. Ke3 {[%clk 0:00:14]}  Ke6 {[%clk 0:00:04]} 53. Kf4 {[%clk 0:00:14]}  Ne7 {[%clk 0:00:05]} 54. Kg5 {[%clk 0:00:14]}  Nd5 {[%clk 0:00:06]} 55. Bd4 {[%clk 0:00:13]}  f4 {[%clk 0:00:06]} 56. Kg4 {[%clk 0:00:13]}  f5+ {[%clk 0:00:05]} 57. Kf3 {[%clk 0:00:13]}  Ne7 {[%clk 0:00:05]} 58. h5 {[%clk 0:00:13]}  Nd5 {[%clk 0:00:05]} 59. Bg7 {[%clk 0:00:13]}  Kf7 {[%clk 0:00:05]} 60. Be5 {[%clk 0:00:11]}  Ke6 {[%clk 0:00:05]} 61. Bd4 {[%clk 0:00:11]}  Kd6 {[%clk 0:00:05]} 62. Bg7 {[%clk 0:00:10]}  Ke7 {[%clk 0:00:05]} 63. Be5 {[%clk 0:00:10]}  Kf7 {[%clk 0:00:05]} 64. Bd4 {[%clk 0:00:09]}  Ke6 {[%clk 0:00:05]} 65. Bg7 {[%clk 0:00:09]}  Nf6 {[%clk 0:00:05]} 66. Bxf6 {[%clk 0:00:07]}  Kxf6 {[%clk 0:00:05]} 67. Kxf4 {[%clk 0:00:08]}  h6 {[%clk 0:00:05]} 68. Kg3 {[%clk 0:00:05]}  Kg5 {[%clk 0:00:06]} 69. Kf3 {[%clk 0:00:06]}  Kxh5 {[%clk 0:00:07]} 70. Kf4 {[%clk 0:00:06]}  Kg6 {[%clk 0:00:06]} 71. Kf3 {[%clk 0:00:06]}  Kg5 {[%clk 0:00:07]} 72. Kg3 {[%clk 0:00:06]}  h5 {[%clk 0:00:08]} 73. Kf3 {[%clk 0:00:07]}  h4 {[%clk 0:00:07]} 74. Kg2 {[%clk 0:00:08]}  Kg4 {[%clk 0:00:07]} 75. Kh2 {[%clk 0:00:08]}  f4 {[%clk 0:00:07]} 76. Kg2 {[%clk 0:00:09]}  f3+ {[%clk 0:00:08]} 77. Kg1 {[%clk 0:00:09]}  Kf4 {[%clk 0:00:09]} 78. Kf1 {[%clk 0:00:10]}  Kg3 {[%clk 0:00:09]} 79. Kg1 {[%clk 0:00:11]}  f2+ {[%clk 0:00:09]} 80. Kf1 {[%clk 0:00:11]}  h3 {[%clk 0:00:09]} 81. Ke2 {[%clk 0:00:12]}  Kg2 {[%clk 0:00:10]} 82. Ke3 {[%clk 0:00:12]}  f1=Q {[%clk 0:00:11]} 83. Kd4 {[%clk 0:00:12]}  Qf3 {[%clk 0:00:12]} 84. Ke5 {[%clk 0:00:12]}  h2 {[%clk 0:00:13]} 85. Ke6 {[%clk 0:00:13]}  h1=Q {[%clk 0:00:13]} 86. Ke7 {[%clk 0:00:14]}  Qe1+ {[%clk 0:00:14]} 87. Kd6 {[%clk 0:00:13]}  Qd3+ {[%clk 0:00:15]} 88. Kc7 {[%clk 0:00:14]}  Qc1+ {[%clk 0:00:16]} 89. Kb6 {[%clk 0:00:15]}  Qdb1+ {[%clk 0:00:16]} 0-1


[Site "https://www.chess.com"]

[Event "Titled Tuesday Blitz February 22 Late 2022"]
[White "Golubenko, Valentina"]
[Black "Gimenez Aguirre, Alejo Ismael"]
[WhiteFideId "4501993"]
[BlackFideId "32041667"]
[WhiteElo "2164"]
[BlackElo "2031"]
[Result "1/2-1/2"]
[Round "05"]
[TimeControl "180+1"]
[Date "2022.02.23"]
[WhiteClock "0:00:12"]
[BlackClock "0:01:46"]

1. d4 {[%clk 0:03:00]}  Nf6 {[%clk 0:02:37]} 2. g3 {[%clk 0:03:00]}  e6 {[%clk 0:02:37]} 3. Bg2 {[%clk 0:02:56]}  c5 {[%clk 0:02:37]} 4. Nf3 {[%clk 0:02:55]}  Nc6 {[%clk 0:02:37]} 5. O-O {[%clk 0:02:52]}  d5 {[%clk 0:02:37]} 6. c4 {[%clk 0:02:51]}  Be7 {[%clk 0:02:36]} 7. e3 {[%clk 0:02:52]}  O-O {[%clk 0:02:35]} 8. cxd5 {[%clk 0:02:49]}  Nxd5 {[%clk 0:02:35]} 9. Nc3 {[%clk 0:02:46]}  cxd4 {[%clk 0:02:34]} 10. exd4 {[%clk 0:02:46]}  Nxc3 {[%clk 0:02:28]} 11. bxc3 {[%clk 0:02:46]}  Bf6 {[%clk 0:02:26]} 12. Rb1 {[%clk 0:02:39]}  Qa5 {[%clk 0:02:23]} 13. Qc2 {[%clk 0:02:39]}  Rd8 {[%clk 0:02:22]} 14. Be3 {[%clk 0:02:33]}  Ne7 {[%clk 0:02:20]} 15. c4 {[%clk 0:02:32]}  Nf5 {[%clk 0:02:17]} 16. Rfd1 {[%clk 0:02:31]}  Nxe3 {[%clk 0:02:14]} 17. fxe3 {[%clk 0:02:31]}  Bd7 {[%clk 0:02:13]} 18. Qe2 {[%clk 0:02:19]}  Bc6 {[%clk 0:02:12]} 19. e4 {[%clk 0:02:19]}  Re8 {[%clk 0:01:56]} 20. d5 {[%clk 0:01:49]}  exd5 {[%clk 0:01:54]} 21. cxd5 {[%clk 0:01:49]}  Bxd5 {[%clk 0:01:50]} 22. Rb5 {[%clk 0:01:46]}  Qxa2 {[%clk 0:01:45]} 23. Qxa2 {[%clk 0:01:42]}  Bxa2 {[%clk 0:01:46]} 24. e5 {[%clk 0:01:34]}  Bd8 {[%clk 0:01:44]} 25. Rxb7 {[%clk 0:01:31]}  Bb6+ {[%clk 0:01:44]} 26. Kh1 {[%clk 0:01:30]}  Rad8 {[%clk 0:01:44]} 27. Rbd7 {[%clk 0:01:28]}  Rxd7 {[%clk 0:01:44]} 28. Rxd7 {[%clk 0:01:28]}  Be6 {[%clk 0:01:45]} 29. Rd6 {[%clk 0:01:23]}  h6 {[%clk 0:01:45]} 30. h3 {[%clk 0:01:21]}  Bc8 {[%clk 0:01:43]} 31. Kh2 {[%clk 0:01:04]}  Bb7 {[%clk 0:01:43]} 32. Rd7 {[%clk 0:01:02]}  Bc6 {[%clk 0:01:43]} 33. Rd6 {[%clk 0:01:02]}  Ba8 {[%clk 0:01:43]} 34. Rd7 {[%clk 0:00:58]}  a5 {[%clk 0:01:42]} 35. Rd6 {[%clk 0:00:51]}  Bc5 {[%clk 0:01:41]} 36. Ra6 {[%clk 0:00:45]}  Bb4 {[%clk 0:01:41]} 37. Ra7 {[%clk 0:00:40]}  Bc6 {[%clk 0:01:39]} 38. g4 {[%clk 0:00:33]}  Bc3 {[%clk 0:01:37]} 39. Kg3 {[%clk 0:00:30]}  Bxf3 {[%clk 0:01:36]} 40. Bxf3 {[%clk 0:00:29]}  Bxe5+ {[%clk 0:01:36]} 41. Kg2 {[%clk 0:00:29]}  Bc3 {[%clk 0:01:37]} 42. Bd5 {[%clk 0:00:29]}  Rf8 {[%clk 0:01:37]} 43. Kf3 {[%clk 0:00:28]}  g6 {[%clk 0:01:37]} 44. Ke4 {[%clk 0:00:28]}  Kg7 {[%clk 0:01:38]} 45. Kf4 {[%clk 0:00:23]}  Bd2+ {[%clk 0:01:36]} 46. Ke4 {[%clk 0:00:22]}  Bb4 {[%clk 0:01:37]} 47. Kf4 {[%clk 0:00:22]}  Kf6 {[%clk 0:01:31]} 48. Ra6+ {[%clk 0:00:20]}  Kg7 {[%clk 0:01:30]} 49. Ra7 {[%clk 0:00:20]}  Bd2+ {[%clk 0:01:28]} 50. Ke4 {[%clk 0:00:20]}  h5 {[%clk 0:01:29]} 51. Rb7 {[%clk 0:00:17]}  Re8+ {[%clk 0:01:27]} 52. Kf3 {[%clk 0:00:16]}  Rf8 {[%clk 0:01:23]} 53. Ke4 {[%clk 0:00:16]}  Bb4 {[%clk 0:01:24]} 54. Kf3 {[%clk 0:00:16]}  h4 {[%clk 0:01:23]} 55. Ke4 {[%clk 0:00:16]}  Re8+ {[%clk 0:01:23]} 56. Kf3 {[%clk 0:00:15]}  Re7 {[%clk 0:01:23]} 57. Rxe7 {[%clk 0:00:13]}  Bxe7 {[%clk 0:01:24]} 58. Bc6 {[%clk 0:00:13]}  Kf6 {[%clk 0:01:24]} 59. Bb5 {[%clk 0:00:13]}  Ke5 {[%clk 0:01:24]} 60. Bc4 {[%clk 0:00:13]}  f6 {[%clk 0:01:24]} 61. Bb5 {[%clk 0:00:13]}  Kd4 {[%clk 0:01:25]} 62. Be8 {[%clk 0:00:13]}  g5 {[%clk 0:01:25]} 63. Bd7 {[%clk 0:00:13]}  Kc3 {[%clk 0:01:26]} 64. Ke4 {[%clk 0:00:13]}  Bd6 {[%clk 0:01:26]} 65. Kf5 {[%clk 0:00:13]}  Be5 {[%clk 0:01:26]} 66. Ke4 {[%clk 0:00:13]}  Kb3 {[%clk 0:01:27]} 67. Kd3 {[%clk 0:00:11]}  a4 {[%clk 0:01:27]} 68. Be6+ {[%clk 0:00:12]}  Kb2 {[%clk 0:01:27]} 69. Kd2 {[%clk 0:00:09]}  a3 {[%clk 0:01:28]} 70. Kd3 {[%clk 0:00:07]}  a2 {[%clk 0:01:29]} 71. Bxa2 {[%clk 0:00:07]}  Kxa2 {[%clk 0:01:30]} 72. Ke3 {[%clk 0:00:07]}  Ka1 {[%clk 0:01:30]} 73. Kf3 {[%clk 0:00:07]}  Kb1 {[%clk 0:01:31]} 74. Ke3 {[%clk 0:00:07]}  Kc1 {[%clk 0:01:32]} 75. Kf3 {[%clk 0:00:08]}  Kd1 {[%clk 0:01:33]} 76. Kg2 {[%clk 0:00:08]}  Ke1 {[%clk 0:01:34]} 77. Kh1 {[%clk 0:00:08]}  Ke2 {[%clk 0:01:35]} 78. Kg2 {[%clk 0:00:08]}  Ke3 {[%clk 0:01:36]} 79. Kg1 {[%clk 0:00:08]}  Kf4 {[%clk 0:01:37]} 80. Kg2 {[%clk 0:00:09]}  Bd6 {[%clk 0:01:38]} 81. Kg1 {[%clk 0:00:09]}  Kg3 {[%clk 0:01:38]} 82. Kh1 {[%clk 0:00:09]}  Kxh3 {[%clk 0:01:39]} 83. Kg1 {[%clk 0:00:09]}  Kxg4 {[%clk 0:01:40]} 84. Kg2 {[%clk 0:00:10]}  f5 {[%clk 0:01:41]} 85. Kh1 {[%clk 0:00:10]}  f4 {[%clk 0:01:42]} 86. Kg1 {[%clk 0:00:11]}  f3 {[%clk 0:01:42]} 87. Kh1 {[%clk 0:00:11]}  Kf4 {[%clk 0:01:43]} 88. Kg1 {[%clk 0:00:11]}  g4 {[%clk 0:01:44]} 89. Kh1 {[%clk 0:00:11]}  g3 {[%clk 0:01:45]} 90. Kg1 {[%clk 0:00:12]}  h3 {[%clk 0:01:45]} 91. Kh1 {[%clk 0:00:12]}  f2 {[%clk 0:01:46]} 1/2-1/2


[Site "https://www.chess.com"]

[Event "Titled Tuesday Blitz February 22 Late 2022"]
[White "Gupta, Abhijeet"]
[Black "Vidit, Santosh Gujrathi"]
[WhiteFideId "5010608"]
[BlackFideId "5029465"]
[WhiteElo "2549"]
[BlackElo "2654"]
[Result "1-0"]
[Round "05"]
[TimeControl "180+1"]
[Date "2022.02.22"]
[WhiteClock "0:00:13"]
[BlackClock "0:00:02"]

1. d4 {[%clk 0:03:00]}  Nf6 {[%clk 0:03:00]} 2. Nf3 {[%clk 0:03:00]}  d5 {[%clk 0:03:00]} 3. Bf4 {[%clk 0:02:59]}  c5 {[%clk 0:02:59]} 4. e3 {[%clk 0:02:58]}  e6 {[%clk 0:02:59]} 5. c3 {[%clk 0:02:52]}  Bd6 {[%clk 0:02:59]} 6. Ne5 {[%clk 0:02:48]}  O-O {[%clk 0:02:53]} 7. Nd2 {[%clk 0:02:47]}  Qc7 {[%clk 0:02:53]} 8. Bd3 {[%clk 0:02:43]}  Nc6 {[%clk 0:02:48]} 9. Ndf3 {[%clk 0:02:43]}  cxd4 {[%clk 0:02:45]} 10. exd4 {[%clk 0:02:42]}  Ng4 {[%clk 0:02:42]} 11. Ng5 {[%clk 0:02:36]}  f5 {[%clk 0:02:32]} 12. Nxh7 {[%clk 0:02:31]}  Kxh7 {[%clk 0:02:20]} 13. Qxg4 {[%clk 0:02:29]}  Nxe5 {[%clk 0:02:21]} 14. dxe5 {[%clk 0:02:26]}  Bxe5 {[%clk 0:02:21]} 15. Bxe5 {[%clk 0:02:18]}  Qxe5+ {[%clk 0:02:22]} 16. Qe2 {[%clk 0:02:18]}  Qxe2+ {[%clk 0:02:17]} 17. Kxe2 {[%clk 0:02:19]}  e5 {[%clk 0:02:09]} 18. f4 {[%clk 0:02:19]}  exf4 {[%clk 0:01:21]} 19. Raf1 {[%clk 0:02:14]}  g5 {[%clk 0:01:19]} 20. h4 {[%clk 0:02:12]}  Kg6 {[%clk 0:01:19]} 21. hxg5 {[%clk 0:02:06]}  Kxg5 {[%clk 0:01:20]} 22. Rh7 {[%clk 0:01:59]}  b6 {[%clk 0:01:14]} 23. Rfh1 {[%clk 0:01:57]}  Be6 {[%clk 0:01:00]} 24. Kf3 {[%clk 0:01:50]}  Bf7 {[%clk 0:00:54]} 25. Rg7+ {[%clk 0:01:47]}  Kf6 {[%clk 0:00:54]} 26. Rgh7 {[%clk 0:01:44]}  Kg5 {[%clk 0:00:54]} 27. Kf2 {[%clk 0:01:39]}  Rae8 {[%clk 0:00:43]} 28. Be2 {[%clk 0:01:36]}  Re6 {[%clk 0:00:32]} 29. Bf3 {[%clk 0:01:32]}  Rd6 {[%clk 0:00:28]} 30. Rg7+ {[%clk 0:01:22]}  Rg6 {[%clk 0:00:27]} 31. Rxg6+ {[%clk 0:01:16]}  Kxg6 {[%clk 0:00:28]} 32. Ke2 {[%clk 0:01:17]}  d4 {[%clk 0:00:26]} 33. cxd4 {[%clk 0:01:13]}  Bxa2 {[%clk 0:00:26]} 34. Kd3 {[%clk 0:01:09]}  Rc8 {[%clk 0:00:22]} 35. d5 {[%clk 0:01:06]}  Bb3 {[%clk 0:00:22]} 36. Kd4 {[%clk 0:01:04]}  a5 {[%clk 0:00:20]} 37. Ke5 {[%clk 0:01:00]}  Rc2 {[%clk 0:00:19]} 38. Rh8 {[%clk 0:00:55]}  Rxb2 {[%clk 0:00:18]} 39. d6 {[%clk 0:00:53]}  Rd2 {[%clk 0:00:17]} 40. Rb8 {[%clk 0:00:51]}  a4 {[%clk 0:00:17]} 41. Rxb6 {[%clk 0:00:48]}  Kg5 {[%clk 0:00:17]} 42. Rb7 {[%clk 0:00:43]}  Rd3 {[%clk 0:00:13]} 43. d7 {[%clk 0:00:40]}  Bc4 {[%clk 0:00:12]} 44. Rb4 {[%clk 0:00:36]}  Rxd7 {[%clk 0:00:02]} 45. Rxc4 {[%clk 0:00:35]}  Ra7 {[%clk 0:00:03]} 46. Rc2 {[%clk 0:00:32]}  a3 {[%clk 0:00:04]} 47. Ra2 {[%clk 0:00:30]}  Ra4 {[%clk 0:00:03]} 48. Kd5 {[%clk 0:00:27]}  Kh4 {[%clk 0:00:04]} 49. Kc5 {[%clk 0:00:25]}  Kg3 {[%clk 0:00:04]} 50. Kb5 {[%clk 0:00:20]}  Ra7 {[%clk 0:00:03]} 51. Kb4 {[%clk 0:00:20]}  Re7 {[%clk 0:00:02]} 52. Rxa3 {[%clk 0:00:15]}  Kf2 {[%clk 0:00:02]} 53. Ra5 {[%clk 0:00:12]}  Re3 {[%clk 0:00:01]} 54. Rxf5 {[%clk 0:00:11]}  Rxf3 {[%clk 0:00:01]} 55. gxf3 {[%clk 0:00:11]}  Kxf3 {[%clk 0:00:02]} 56. Kc3 {[%clk 0:00:12]}  Ke3 {[%clk 0:00:02]} 57. Re5+ {[%clk 0:00:12]}  Kf2 {[%clk 0:00:02]} 58. Kd2 {[%clk 0:00:12]}  f3 {[%clk 0:00:03]} 59. Rf5 {[%clk 0:00:13]}  Kg2 {[%clk 0:00:02]} 60. Ke3 {[%clk 0:00:13]} 1-0


[Site "https://www.chess.com"]

[Event "Titled Tuesday Blitz February 22 Late 2022"]
[White "Hambleton, Aman"]
[Black "Mortazavi, Ali"]
[WhiteFideId "2606577"]
[BlackFideId "401323"]
[WhiteElo "2552"]
[BlackElo "2339"]
[Result "1-0"]
[Round "05"]
[TimeControl "180+1"]
[Date "2022.02.23"]
[WhiteClock "0:00:02"]
[BlackClock "0:00:01"]

1. d4 {[%clk 0:03:00]}  Nf6 {[%clk 0:02:58]} 2. c4 {[%clk 0:03:00]}  g6 {[%clk 0:02:58]} 3. Nc3 {[%clk 0:02:56]}  Bg7 {[%clk 0:02:58]} 4. e4 {[%clk 0:02:53]}  O-O {[%clk 0:02:59]} 5. Bd3 {[%clk 0:02:54]}  d6 {[%clk 0:02:59]} 6. Nge2 {[%clk 0:02:54]}  Nc6 {[%clk 0:03:00]} 7. h3 {[%clk 0:02:53]}  Nh5 {[%clk 0:02:52]} 8. Be3 {[%clk 0:02:51]}  e5 {[%clk 0:02:52]} 9. d5 {[%clk 0:02:51]}  Nd4 {[%clk 0:02:52]} 10. g4 {[%clk 0:02:14]}  Nf3+ {[%clk 0:02:46]} 11. Kf1 {[%clk 0:02:14]}  Nf4 {[%clk 0:02:17]} 12. Nxf4 {[%clk 0:02:08]}  exf4 {[%clk 0:02:17]} 13. Bxf4 {[%clk 0:02:09]}  Nd4 {[%clk 0:02:04]} 14. Kg2 {[%clk 0:02:05]}  f5 {[%clk 0:02:03]} 15. exf5 {[%clk 0:02:06]}  gxf5 {[%clk 0:02:03]} 16. g5 {[%clk 0:02:06]}  c5 {[%clk 0:01:45]} 17. Qd2 {[%clk 0:01:33]}  a6 {[%clk 0:01:40]} 18. Rae1 {[%clk 0:01:30]}  b5 {[%clk 0:01:39]} 19. b3 {[%clk 0:01:20]}  Ra7 {[%clk 0:01:13]} 20. Ne2 {[%clk 0:01:08]}  bxc4 {[%clk 0:01:04]} 21. Bxc4 {[%clk 0:01:05]}  a5 {[%clk 0:00:44]} 22. Nxd4 {[%clk 0:00:52]}  cxd4 {[%clk 0:00:45]} 23. Re2 {[%clk 0:00:25]}  a4 {[%clk 0:00:25]} 24. h4 {[%clk 0:00:19]}  axb3 {[%clk 0:00:25]} 25. axb3 {[%clk 0:00:16]}  Rc7 {[%clk 0:00:20]} 26. Rhe1 {[%clk 0:00:15]}  Bb7 {[%clk 0:00:20]} 27. Qb4 {[%clk 0:00:12]}  Qa8 {[%clk 0:00:15]} 28. Qxd6 {[%clk 0:00:08]}  Rcf7 {[%clk 0:00:11]} 29. Re7 {[%clk 0:00:05]}  d3 {[%clk 0:00:07]} 30. Rxf7 {[%clk 0:00:04]}  Rxf7 {[%clk 0:00:07]} 31. Rd1 {[%clk 0:00:03]}  Rf8 {[%clk 0:00:03]} 32. Rxd3 {[%clk 0:00:03]}  Rd8 {[%clk 0:00:03]} 33. Qe6+ {[%clk 0:00:03]}  Kh8 {[%clk 0:00:03]} 34. Be5 {[%clk 0:00:04]}  Rg8 {[%clk 0:00:02]} 35. Kg3 {[%clk 0:00:03]}  f4+ {[%clk 0:00:02]} 36. Bxf4 {[%clk 0:00:02]}  Qf8 {[%clk 0:00:02]} 37. Be5 {[%clk 0:00:02]}  Bc8 {[%clk 0:00:02]} 38. Bxg7+ {[%clk 0:00:01]}  Rxg7 {[%clk 0:00:02]} 39. Qe4 {[%clk 0:00:02]}  Qd8 {[%clk 0:00:02]} 40. Rf3 {[%clk 0:00:02]}  Qd7 {[%clk 0:00:02]} 41. Kg2 {[%clk 0:00:02]}  Rg8 {[%clk 0:00:01]} 42. Qe5+ {[%clk 0:00:02]} 1-0


[Site "https://www.chess.com"]